fUSD/lending_fUSD_20260703
["ID","MTS","AMOUNT","RATE_DAILY","PERIOD"]
[426963629,1783074644000,-500.0,0.00026799,2]
[426963648,1783074646000,-480404.72939853,0.000268,2]
[426963650,1783074646000,-260423.12631326,0.000268,2]
[426963649,1783074646000,-214.76,0.000268,2]
[426963647,1783074646000,-662.40411352,0.00026684,2]
[426963657,1783074780000,151.41,0.00028018,120]
[426963658,1783074916000,154.72,0.00017645,2]
[426963669,1783075319000,-151.0,0.00022,2]
[426963662,1783075319000,-195.04672425,0.00022,2]
[426963659,1783075319000,-203.37615719,0.00020209,2]
[426963661,1783075319000,-274.0,0.00022,2]
[426963660,1783075319000,-245.47536868,0.00021219,2]
[426963663,1783075319000,-150.0,0.00022,2]
[426963665,1783075319000,-151.0,0.00022,2]
[426963666,1783075319000,-151.0,0.00022,2]
[426963664,1783075319000,-153.0,0.00022,2]
[426963667,1783075319000,-292.67590134,0.00022,2]
[426963670,1783075319000,-151.0,0.00022,2]
[426963668,1783075319000,-151.0,0.00022,2]
[426963683,1783075319000,-200.0,0.00024641,2]
[426963673,1783075319000,-302.27223619,0.00023667,2]
[426963671,1783075319000,-302.27223619,0.00023,2]
[426963681,1783075319000,-5000.0,0.00024605,2]
[426963679,1783075319000,-153.93129549,0.00024397,2]
[426963678,1783075319000,-714.5719307,0.00024394,2]
[426963680,1783075319000,-213.16,0.00024479,2]
[426963682,1783075319000,-152.76,0.00024641,2]
[426963676,1783075319000,-913.0,0.00024277,2]
[426963675,1783075319000,-900.0,0.00024277,2]
[426963674,1783075319000,-302.27223619,0.00024,2]
[426963672,1783075319000,-302.27223619,0.00023333,2]
[426963677,1783075319000,-302.27223619,0.00024333,2]
[426963691,1783075320000,-553.86106381,0.000249,2]
[426963685,1783075320000,-165.84,0.00024658,2]
[426963684,1783075320000,-438.94,0.00024641,2]
[426963686,1783075320000,-302.27223619,0.00024667,2]
[426963687,1783075320000,-3168.64095747,0.00024852,2]
[426963688,1783075320000,-254.0,0.00024899,2]
[426963690,1783075320000,-636.09087392,0.000249,2]
[426963689,1783075320000,-900.4986016,0.000249,2]
[426963692,1783075320000,-7630.26399228,0.000249,2]
[426963693,1783075320000,-205.70512549,0.000249,2]
[426963694,1783075320000,-151.41,0.00024905,2]
[426963696,1783075320000,-201.7617035,0.00024908,2]
[426963695,1783075320000,-200.25759075,0.00024908,2]
[426963706,1783075320000,-350.4460334,0.00025,2]
[426963705,1783075320000,-302.27223619,0.00025,2]
[426963704,1783075320000,-152.0,0.00025,2]
[426963701,1783075320000,-216.74224685,0.00024977,2]
[426963703,1783075320000,-151.0,0.00025,2]
[426963700,1783075320000,-329.87900722,0.00024973,2]
[426963698,1783075320000,-21049.45,0.00024961,7]
[426963699,1783075320000,-160.0,0.00024973,2]
[426963697,1783075320000,-291.30977273,0.00024908,2]
[426963702,1783075320000,-160.0,0.00024977,2]
[426963715,1783075371000,-155.0,0.00025,2]
[426963718,1783075371000,-1000.0,0.00025099,2]
[426963719,1783075371000,-1500.0,0.00025172,2]
[426963717,1783075371000,-329.87900722,0.00025073,2]
[426963716,1783075371000,-153.0,0.00025,2]
[426963713,1783075371000,-356.01,0.00024961,7]
[426963708,1783075371000,-720.39888128,0.000249,2]
[426963712,1783075371000,-990.17,0.00024961,7]
[426963711,1783075371000,-197.32862297,0.00024903,2]
[426963710,1783075371000,-185.62076722,0.00024903,2]
[426963707,1783075371000,-183.0,0.00022,2]
[426963720,1783075371000,-1500.0,0.00025172,2]
[426963714,1783075371000,-28.5539666,0.00025,2]
[426963722,1783075371000,-1266.99226925,0.00025192,2]
[426963709,1783075371000,-508.87269914,0.000249,2]
[426963721,1783075371000,-329.87900722,0.00025173,2]
[426963723,1783075371000,-553.86106381,0.000252,2]
[426963736,1783075371000,-218115.505596,0.0002546,2]
[426963735,1783075371000,-508.87269914,0.000254,2]
[426963734,1783075371000,-720.39888128,0.000254,2]
[426963732,1783075371000,-553.86106381,0.000254,2]
[426963733,1783075371000,-7630.26399228,0.000254,2]
[426963731,1783075371000,-302.27223619,0.00025333,2]
[426963737,1783075371000,-376.02338483,0.0002546,2]
[426963728,1783075371000,-166.33,0.00025221,2]
[426963729,1783075371000,-1000.0,0.00025223,2]
[426963727,1783075371000,-270.49028906,0.00025209,2]
[426963730,1783075371000,-1537.88,0.00025252,2]
[426963726,1783075371000,-508.87269914,0.000252,2]
[426963724,1783075371000,-7630.26399228,0.000252,2]
[426963725,1783075371000,-720.39888128,0.000252,2]
[426963790,1783075673000,3600.0,0.00015,2]
[426963788,1783075673000,396.14783167,0.00015,2]
[426963789,1783075673000,151.0,0.00015,2]
[426963794,1783075740000,2000.0,0.00030135,120]
[426963817,1783075831000,-25873.04040965,0.00015,2]
[426963820,1783075831000,-151.0,0.000192,2]
[426963819,1783075831000,-151.0,0.000192,2]
[426963821,1783075831000,-251.02624265,0.00019592,2]
[426963818,1783075831000,-187.22529406,0.000171,2]
[426963857,1783075832000,-481.91480014,0.000252,2]
[426963856,1783075832000,-605.46557986,0.000252,2]
[426963853,1783075832000,-318.84762026,0.000252,2]
[426963852,1783075832000,-1443.74,0.00025184,2]
[426963849,1783075832000,-251.0,0.00025,2]
[426963854,1783075832000,-1094.69962483,0.000252,2]
[426963855,1783075832000,-6386.15037193,0.000252,2]
[426963850,1783075832000,-394.0,0.00025,2]
[426963846,1783075832000,-223.0,0.00025,2]
[426963851,1783075832000,-508.7927224,0.00025156,7]
[426963866,1783075832000,-2464.55452716,0.0002536,2]
[426963869,1783075832000,-5137.30345257,0.0002536,2]
[426963860,1783075832000,-4156.9751,0.00025359,2]
[426963870,1783075832000,-2043.1458352,0.00025364,2]
[426963858,1783075832000,-5000.0,0.00025305,2]
[426963861,1783075832000,-3171.45174378,0.0002536,2]
[426963864,1783075832000,-2500.0,0.0002536,2]
[426963868,1783075832000,-298.27422356,0.0002536,2]
[426963867,1783075832000,-21822.62295834,0.0002536,2]
[426963865,1783075832000,-8116.31799094,0.0002536,2]
[426963847,1783075832000,-251.0,0.00025,2]
[426963871,1783075832000,-1275.05752347,0.00025364,2]
[426963859,1783075832000,-150.0,0.00025326,2]
[426963848,1783075832000,-153.0,0.00025,2]
[426963835,1783075832000,-6386.15037193,0.000249,2]
[426963844,1783075832000,-160.0,0.00024961,2]
[426963873,1783075832000,-203.94056447,0.00025364,2]
[426963822,1783075832000,-1501.13590771,0.0002,5]
[426963824,1783075832000,-249.0096411,0.000221,2]
[426963823,1783075832000,-506.0,0.00020521,2]
[426963829,1783075832000,-1443.74,0.0002457,2]
[426963825,1783075832000,-9541.05454152,0.00023,2]
[426963833,1783075832000,-318.84762026,0.000249,2]
[426963828,1783075832000,-151.41,0.0002457,2]
[426963826,1783075832000,-181.09,0.00024177,2]
[426963827,1783075832000,-863.47626194,0.0002421,2]
[426963845,1783075832000,-160.0,0.00024965,2]
[426963830,1783075832000,-165.84,0.00024658,2]
[426963831,1783075832000,-1091.0,0.00024814,2]
[426963837,1783075832000,-913.0,0.000249,2]
[426963836,1783075832000,-884.0,0.000249,2]
[426963838,1783075832000,-908.0,0.000249,2]
[426963834,1783075832000,-1094.69962483,0.000249,2]
[426963841,1783075832000,-170.77110584,0.00024903,2]
[426963839,1783075832000,-605.46557986,0.000249,2]
[426963840,1783075832000,-481.91480014,0.000249,2]
[426963842,1783075832000,-181.54233313,0.00024903,2]
[426963843,1783075832000,-287.07253967,0.00024903,2]
[426963832,1783075832000,-200.0,0.00024839,2]
[426963872,1783075832000,-1114.31806116,0.00025364,2]
[426963898,1783075832000,-160.65413325,0.00025458,2]
[426963875,1783075832000,-1094.69962483,0.000254,2]
[426963901,1783075832000,-114.04349743,0.00025458,2]
[426963899,1783075832000,-500.0,0.00025458,2]
[426963905,1783075832000,-500.0,0.00025458,2]
[426963906,1783075832000,-500.0,0.00025458,2]
[426963907,1783075832000,-500.0,0.00025458,2]
[426963909,1783075832000,-500.0,0.00025459,2]
[426963910,1783075832000,-500.0,0.00025459,2]
[426963911,1783075832000,-242.23160423,0.00025459,2]
[426963914,1783075832000,-500.0,0.00025459,2]
[426963874,1783075832000,-318.84762026,0.000254,2]
[426963903,1783075832000,-500.0,0.00025458,2]
[426963908,1783075832000,-500.0,0.00025459,2]
[426963912,1783075832000,-500.0,0.00025459,2]
[426963913,1783075832000,-500.0,0.00025459,2]
[426963916,1783075832000,-500.0,0.00025459,2]
[426963919,1783075832000,-500.0,0.00025459,2]
[426963918,1783075832000,-562.11911128,0.00025459,2]
[426963920,1783075832000,-29089.08446762,0.0002546,2]
[426963921,1783075832000,-500.0,0.00025458,2]
[426963922,1783075832000,-85.59418483,0.0002546,2]
[426963923,1783075832000,-500.0,0.0002546,2]
[426963924,1783075832000,-4728.06623055,0.0002546,2]
[426963915,1783075832000,-500.0,0.00025459,2]
[426963904,1783075832000,-646.05218879,0.00025458,2]
[426963917,1783075832000,-277.80036873,0.00025459,2]
[426963902,1783075832000,-385.95650257,0.00025458,2]
[426963877,1783075832000,-605.46557986,0.000254,2]
[426963880,1783075832000,-151.0,0.00025457,7]
[426963876,1783075832000,-6386.15037193,0.000254,2]
[426963884,1783075832000,-500.0,0.00025458,2]
[426963883,1783075832000,-500.0,0.00025458,2]
[426963881,1783075832000,-500.0,0.00025458,2]
[426963879,1783075832000,-151.0,0.00025457,7]
[426963885,1783075832000,-500.0,0.00025458,2]
[426963887,1783075832000,-500.0,0.00025458,2]
[426963895,1783075832000,-622.06285567,0.00025458,2]
[426963896,1783075832000,-500.0,0.00025458,2]
[426963894,1783075832000,-500.0,0.00025458,2]
[426963897,1783075832000,-339.34586675,0.00025458,2]
[426963893,1783075832000,-500.0,0.00025458,2]
[426963889,1783075832000,-500.0,0.00025458,2]
[426963886,1783075832000,-500.0,0.00025458,2]
[426963888,1783075832000,-226.46569614,0.00025458,2]
[426963891,1783075832000,-294.26552236,0.00025458,2]
[426963890,1783075832000,-500.0,0.00025458,2]
[426963892,1783075832000,-205.73447764,0.00025458,2]
[426963882,1783075832000,-500.0,0.00025458,2]
[426963878,1783075832000,-481.91480014,0.000254,2]
[426963900,1783075832000,-195.7512969,0.00025458,2]
[426963925,1783075833000,-500.0,0.00025458,2]
[426963926,1783075833000,-275.59928893,0.0002546,2]
[426963986,1783075838000,-500.0,0.00025458,2]
[426963978,1783075838000,-500.0,0.00025458,2]
[426963990,1783075838000,-364983.76643844,0.0002546,2]
[426963976,1783075838000,-500.0,0.00025458,2]
[426963974,1783075838000,-500.0,0.00025458,2]
[426963972,1783075838000,-500.0,0.00025458,2]
[426963966,1783075838000,-320.31130964,0.00025458,2]
[426963968,1783075838000,-500.0,0.00025458,2]
[426963962,1783075838000,-123.86304154,0.00025458,2]
[426963964,1783075838000,-179.68869036,0.00025458,2]
[426963970,1783075838000,-500.0,0.00025458,2]
[426963958,1783075838000,-500.0,0.00025458,2]
[426963956,1783075838000,-500.0,0.00025458,2]
[426963953,1783075838000,-500.0,0.00025458,2]
[426963955,1783075838000,-500.0,0.00025458,2]
[426963952,1783075838000,-500.0,0.00025458,2]
[426963954,1783075838000,-500.0,0.00025458,2]
[426963950,1783075838000,-1703.29224844,0.00025359,2]
[426963951,1783075838000,-500.0,0.00025458,2]
[426963949,1783075838000,-835.54999998,0.00025359,2]
[426963947,1783075838000,-754.17472989,0.00025359,2]
[426963946,1783075838000,-898.00642169,0.00025359,2]
[426963960,1783075838000,-500.0,0.00025458,2]
[426963988,1783075838000,-500.0,0.00025458,2]
[426963963,1783075838000,-376.13695846,0.00025458,2]
[426963979,1783075838000,-500.0,0.00025458,2]
[426964022,1783075838000,-500.0,0.00025699,2]
[426964026,1783075838000,-500.0,0.00025699,2]
[426964024,1783075838000,-500.0,0.00025699,2]
[426964020,1783075838000,-500.0,0.00025699,2]
[426964018,1783075838000,-300.0,0.00025699,10]
[426964016,1783075838000,-150.0,0.00025675,7]
[426964014,1783075838000,-302.27223619,0.00025667,2]
[426964010,1783075838000,-3171.45174377,0.00025658,2]
[426964008,1783075838000,-662.40411352,0.000256,2]
[426964006,1783075838000,-153.27888287,0.000256,2]
[426963998,1783075838000,-5137.30345251,0.00025509,2]
[426963977,1783075838000,-500.0,0.00025458,2]
[426964002,1783075838000,-612.833808,0.00025599,2]
[426964012,1783075838000,-5137.30345251,0.00025658,2]
[426963980,1783075838000,-500.0,0.00025458,2]
[426963984,1783075838000,-500.0,0.00025458,2]
[426963982,1783075838000,-500.0,0.00025458,2]
[426963994,1783075838000,-160.506592,0.0002546,2]
[426963981,1783075838000,-285.0,0.00025458,2]
[426964028,1783075838000,-500.0,0.00025699,2]
[426963996,1783075838000,-3171.45174377,0.00025509,2]
[426963999,1783075838000,-600.51,0.00025566,2]
[426964004,1783075838000,-34388.44,0.000256,2]
[426963992,1783075838000,-1915.26,0.0002546,2]
[426964045,1783075839000,-6386.15037193,0.000257,2]
[426964030,1783075839000,-500.0,0.00025699,2]
[426964034,1783075839000,-300.0,0.00025699,10]
[426964032,1783075839000,-500.0,0.00025699,2]
[426964037,1783075839000,-1800.0,0.000257,9]
[426964039,1783075839000,-200.0,0.000257,9]
[426964041,1783075839000,-318.84762026,0.000257,2]
[426964056,1783075839000,-350.0,0.00025778,2]
[426964043,1783075839000,-1094.69962483,0.000257,2]
[426964047,1783075839000,-1676679.20448868,0.000257,7]
[426964059,1783075839000,-1443.74,0.00025798,2]
[426964065,1783075839000,-408820.25915193,0.000258,2]
[426964060,1783075839000,-82180.72209529,0.00025799,2]
[426964062,1783075839000,-3600.0,0.000258,9]
[426964053,1783075839000,-174.34275616,0.000257,4]
[426964049,1783075839000,-605.46557986,0.000257,2]
[426964050,1783075839000,-481.91480014,0.000257,2]
[426964055,1783075839000,-163.33736492,0.000257,2]
[426964087,1783075840000,-902.3158972,0.00025359,2]
[426964088,1783075840000,-256.58788087,0.00025359,2]
[426964089,1783075840000,-1530.58752979,0.00025359,2]
[426964090,1783075840000,-3593.99467973,0.00025359,2]
[426964113,1783075842000,-69.47401241,0.00025359,2]
[426964114,1783075843000,-374.2879956,0.000258,2]
[426964115,1783075843000,-4000.0,0.000258,2]
[426964133,1783075847000,-351.86118215,0.000258,2]
[426964134,1783075847000,-27316.53665499,0.000258,2]
[426964131,1783075847000,-45484.29479531,0.000258,2]
[426964132,1783075847000,-528.44937983,0.000258,2]
[426964130,1783075847000,-2500.0,0.0002536,2]
[426964139,1783076210000,516.84,0.0003,120]
[426964140,1783076301000,282.26,0.00029539,120]
[426964156,1783076832000,198.21,0.00029074,120]
[426964165,1783076935000,-299.81595,0.00014689,2]
[426964166,1783076935000,-39.16713534,0.00014693,2]
[426964167,1783076941000,2000.0,0.00030134,120]
[426964172,1783076981000,-300.0,0.00014696,2]
[426964171,1783076981000,-210.83286466,0.00014693,2]
[426964174,1783076981000,-150.0,0.00014842,2]
[426964175,1783076981000,-250.0,0.00015022,2]
[426964176,1783076981000,-300.0,0.00016158,2]
[426964173,1783076981000,-162.45062693,0.00014703,2]
[426964179,1783076981000,-547.65420577,0.00016158,2]
[426964177,1783076981000,-256.10668052,0.00016158,2]
[426964180,1783076981000,-327.83506098,0.00016352,2]
[426964182,1783076981000,-201.99056114,0.000178,2]
[426964181,1783076981000,-2043.13,0.000178,2]
[426964178,1783076981000,-250.0,0.00016158,2]
[426964233,1783077032000,-400.5692624,0.00024031,2]
[426964219,1783077032000,-200.0,0.00023433,2]
[426964223,1783077032000,-500.0,0.00023771,2]
[426964224,1783077032000,-5000.0,0.00023773,2]
[426964225,1783077032000,-2176.99,0.00023887,2]
[426964228,1783077032000,-166.22,0.00023983,2]
[426964226,1783077032000,-150.0,0.000239,2]
[426964227,1783077032000,-430.0,0.00023968,18]
[426964231,1783077032000,-2009.0,0.00024004,2]
[426964238,1783077032000,-150.0,0.00024112,2]
[426964229,1783077032000,-150.0,0.00023983,2]
[426964230,1783077032000,-634.77169599,0.00024,2]
[426964235,1783077032000,-150.0,0.0002406,2]
[426964237,1783077032000,-352.285,0.0002406,30]
[426964217,1783077032000,-634.77169599,0.00023333,2]
[426964239,1783077032000,-179.0,0.00024155,10]
[426964243,1783077032000,-161.4720085,0.00024342,2]
[426964245,1783077032000,-500.0,0.00024342,2]
[426964232,1783077032000,-368.71907251,0.00024004,2]
[426964220,1783077032000,-282.26,0.00023631,2]
[426964214,1783077032000,-634.77169599,0.00023,2]
[426964222,1783077032000,-634.77169599,0.00023667,2]
[426964198,1783077032000,-162.45062693,0.00014694,2]
[426964199,1783077032000,-2011.23943886,0.000178,2]
[426964200,1783077032000,-151.31,0.000189,2]
[426964201,1783077032000,-216.05933382,0.00019694,2]
[426964202,1783077032000,-151.0,0.00021845,2]
[426964204,1783077032000,-151.0,0.00021845,2]
[426964203,1783077032000,-151.0,0.00021845,2]
[426964205,1783077032000,-151.0,0.00021845,2]
[426964206,1783077032000,-151.0,0.00021845,2]
[426964221,1783077032000,-150.68,0.00023662,2]
[426964207,1783077032000,-151.0,0.00021845,2]
[426964210,1783077032000,-151.0,0.00021845,2]
[426964209,1783077032000,-151.0,0.00021845,2]
[426964212,1783077032000,-214.65647567,0.00021845,2]
[426964208,1783077032000,-151.0,0.00021845,2]
[426964240,1783077032000,-12050.27,0.00024174,2]
[426964213,1783077032000,-599.97033416,0.00022333,2]
[426964216,1783077032000,-5807.83,0.00023305,2]
[426964215,1783077032000,-198.21,0.00023259,2]
[426964218,1783077032000,-770.5,0.00023422,2]
[426964211,1783077032000,-151.0,0.00021845,2]
[426964241,1783077032000,-634.77169599,0.00024333,2]
[426964258,1783077032000,-181.87,0.00024658,2]
[426964250,1783077032000,-2009.0,0.00024604,2]
[426964278,1783077032000,-12672.85,0.00024932,2]
[426964280,1783077032000,-225.51,0.00024946,2]
[426964279,1783077032000,-500.0,0.00024945,2]
[426964282,1783077032000,-548.26,0.00024961,7]
[426964285,1783077032000,-153.0,0.00025,2]
[426964281,1783077032000,-4466.25,0.00024961,7]
[426964284,1783077032000,-152.0,0.00025,2]
[426964283,1783077032000,-2951.19338684,0.0002499,2]
[426964287,1783077032000,-151.0,0.00025,2]
[426964288,1783077032000,-152.0,0.00025,2]
[426964286,1783077032000,-361.0,0.00025,2]
[426964291,1783077032000,-154.0,0.00025,2]
[426964290,1783077032000,-156.0,0.00025,2]
[426964292,1783077032000,-37093.12,0.00025,2]
[426964293,1783077032000,-3121.0,0.00025,2]
[426964294,1783077032000,-634.77169599,0.00025,2]
[426964296,1783077032000,-270.0,0.00025,2]
[426964295,1783077032000,-239.0,0.00025,2]
[426964248,1783077032000,-153.19863725,0.00024397,2]
[426964275,1783077032000,-152.0,0.00024923,2]
[426964277,1783077032000,-160.0,0.00024926,2]
[426964289,1783077032000,-382.0,0.00025,2]
[426964274,1783077032000,-192.84345778,0.00024905,2]
[426964252,1783077032000,-887.0,0.00024626,2]
[426964276,1783077032000,-160.0,0.00024926,2]
[426964254,1783077032000,-913.0,0.00024626,2]
[426964256,1783077032000,-176.38,0.00024658,2]
[426964257,1783077032000,-643.6866688,0.00024658,2]
[426964260,1783077032000,-500.0,0.00024658,2]
[426964263,1783077032000,-164.0,0.00024696,5]
[426964264,1783077032000,-1151.55355255,0.00024895,2]
[426964262,1783077032000,-269.6680407,0.00024694,2]
[426964259,1783077032000,-160.32,0.00024658,2]
[426964266,1783077032000,-1707.18961421,0.000249,2]
[426964265,1783077032000,-178.96439433,0.000249,2]
[426964267,1783077032000,-6972.10964157,0.000249,2]
[426964268,1783077032000,-527.80241617,0.000249,2]
[426964269,1783077032000,-534.07525158,0.000249,2]
[426964270,1783077032000,-291.67977347,0.00024902,2]
[426964271,1783077032000,-162.74322273,0.00024905,2]
[426964261,1783077032000,-634.77169599,0.00024667,2]
[426964272,1783077032000,-154.19302243,0.00024905,2]
[426964273,1783077032000,-187.45827398,0.00024905,2]
[426964336,1783077033000,-500.0,0.00025198,2]
[426964334,1783077033000,-451.60521888,0.00025198,2]
[426964335,1783077033000,-500.0,0.00025198,2]
[426964332,1783077033000,-500.0,0.00025198,2]
[426964329,1783077033000,-500.0,0.00025198,2]
[426964333,1783077033000,-500.0,0.00025198,2]
[426964330,1783077033000,-500.0,0.00025198,2]
[426964328,1783077033000,-500.0,0.00025198,2]
[426964337,1783077033000,-500.0,0.00025198,2]
[426964326,1783077033000,-500.0,0.00025198,2]
[426964331,1783077033000,-500.0,0.00025198,2]
[426964339,1783077033000,-500.0,0.00025198,2]
[426964346,1783077033000,-500.0,0.00025198,2]
[426964338,1783077033000,-500.0,0.00025198,2]
[426964340,1783077033000,-500.0,0.00025198,2]
[426964347,1783077033000,-500.0,0.00025198,2]
[426964345,1783077033000,-500.0,0.00025198,2]
[426964341,1783077033000,-500.0,0.00025198,2]
[426964348,1783077033000,-500.0,0.00025198,2]
[426964343,1783077033000,-500.0,0.00025198,2]
[426964344,1783077033000,-500.0,0.00025198,2]
[426964349,1783077033000,-500.0,0.00025198,2]
[426964351,1783077033000,-500.0,0.00025198,2]
[426964350,1783077033000,-500.0,0.00025198,2]
[426964327,1783077033000,-393.9467684,0.00025198,2]
[426964342,1783077033000,-500.0,0.00025198,2]
[426964325,1783077033000,-514.75352256,0.00025198,2]
[426964302,1783077033000,-367.0,0.000251,7]
[426964319,1783077033000,-210.77198662,0.00025198,2]
[426964352,1783077033000,-500.0,0.00025198,2]
[426964297,1783077033000,-178.96439433,0.000251,2]
[426964298,1783077033000,-1707.18961421,0.000251,2]
[426964299,1783077033000,-6972.10964157,0.000251,2]
[426964300,1783077033000,-527.80241617,0.000251,2]
[426964301,1783077033000,-534.07525158,0.000251,2]
[426964303,1783077033000,-2541.02581118,0.00025104,2]
[426964304,1783077033000,-805.71524869,0.00025137,2]
[426964308,1783077033000,-500.0,0.00025198,2]
[426964309,1783077033000,-500.0,0.00025198,2]
[426964306,1783077033000,-1783.0,0.0002516,2]
[426964307,1783077033000,-355.00836146,0.00025198,2]
[426964324,1783077033000,-500.0,0.00025198,2]
[426964305,1783077033000,-164.45264996,0.00025137,2]
[426964311,1783077033000,-500.0,0.00025198,2]
[426964310,1783077033000,-392.70530956,0.00025198,2]
[426964313,1783077033000,-505.16108093,0.00025198,2]
[426964315,1783077033000,-500.0,0.00025198,2]
[426964314,1783077033000,-500.0,0.00025198,2]
[426964316,1783077033000,-500.0,0.00025198,2]
[426964323,1783077033000,-500.0,0.00025198,2]
[426964320,1783077033000,-500.00000004,0.00025198,2]
[426964322,1783077033000,-384.37213872,0.00025198,2]
[426964321,1783077033000,-500.0,0.00025198,2]
[426964318,1783077033000,-500.0,0.00025198,2]
[426964317,1783077033000,-500.0,0.00025198,2]
[426964312,1783077033000,-500.31188821,0.00025198,2]
[426964353,1783077033000,-500.0,0.00025198,2]
[426964363,1783077033000,-500.0,0.00025198,2]
[426964354,1783077033000,-500.0,0.00025198,2]
[426964385,1783077033000,-554.07821658,0.00025198,2]
[426964387,1783077033000,-554.07821658,0.00025198,2]
[426964393,1783077033000,-554.07821658,0.00025198,2]
[426964391,1783077033000,-554.07821658,0.00025198,2]
[426964394,1783077033000,-554.07821658,0.00025198,2]
[426964389,1783077033000,-554.07821658,0.00025198,2]
[426964390,1783077033000,-554.07821658,0.00025198,2]
[426964388,1783077033000,-554.07821658,0.00025198,2]
[426964392,1783077033000,-554.07821658,0.00025198,2]
[426964395,1783077033000,-554.07821658,0.00025198,2]
[426964396,1783077033000,-554.07821658,0.00025198,2]
[426964397,1783077033000,-554.07821658,0.00025198,2]
[426964403,1783077033000,-554.07821658,0.00025198,2]
[426964406,1783077033000,-554.07821658,0.00025198,2]
[426964401,1783077033000,-554.07821658,0.00025198,2]
[426964405,1783077033000,-554.07821658,0.00025198,2]
[426964400,1783077033000,-554.07821658,0.00025198,2]
[426964398,1783077033000,-554.07821658,0.00025198,2]
[426964399,1783077033000,-554.07821658,0.00025198,2]
[426964404,1783077033000,-554.07821658,0.00025198,2]
[426964402,1783077033000,-554.07821658,0.00025198,2]
[426964407,1783077033000,-554.07821658,0.00025198,2]
[426964411,1783077033000,-554.07821658,0.00025198,2]
[426964410,1783077033000,-554.07821658,0.00025198,2]
[426964355,1783077033000,-500.0,0.00025198,2]
[426964386,1783077033000,-554.07821658,0.00025198,2]
[426964383,1783077033000,-554.07821658,0.00025198,2]
[426964408,1783077033000,-554.07821658,0.00025198,2]
[426964382,1783077033000,-554.07821658,0.00025198,2]
[426964384,1783077033000,-554.07821658,0.00025198,2]
[426964356,1783077033000,-390.80439474,0.00025198,2]
[426964357,1783077033000,-500.0,0.00025198,2]
[426964358,1783077033000,-500.0,0.00025198,2]
[426964360,1783077033000,-500.0,0.00025198,2]
[426964361,1783077033000,-500.0,0.00025198,2]
[426964366,1783077033000,-554.07821658,0.00025198,2]
[426964409,1783077033000,-554.07821658,0.00025198,2]
[426964364,1783077033000,-236.65370958,0.00025198,2]
[426964365,1783077033000,-554.07821658,0.00025198,2]
[426964370,1783077033000,-554.07821658,0.00025198,2]
[426964367,1783077033000,-554.07821658,0.00025198,2]
[426964369,1783077033000,-554.07821658,0.00025198,2]
[426964359,1783077033000,-500.0,0.00025198,2]
[426964362,1783077033000,-500.0,0.00025198,2]
[426964368,1783077033000,-554.07821658,0.00025198,2]
[426964374,1783077033000,-554.07821658,0.00025198,2]
[426964378,1783077033000,-554.07821658,0.00025198,2]
[426964377,1783077033000,-554.07821658,0.00025198,2]
[426964381,1783077033000,-554.07821658,0.00025198,2]
[426964379,1783077033000,-554.07821658,0.00025198,2]
[426964376,1783077033000,-554.07821658,0.00025198,2]
[426964373,1783077033000,-554.07821658,0.00025198,2]
[426964372,1783077033000,-554.07821658,0.00025198,2]
[426964371,1783077033000,-554.07821658,0.00025198,2]
[426964375,1783077033000,-554.07821658,0.00025198,2]
[426964380,1783077033000,-554.07821658,0.00025198,2]